bitfinex/quotes_BTCUSD_20250908
["timestamp","ask_amount","ask_price","bid_price","bid_amount"]
[1757327819271,0.32909311,112200.0,112190.0,0.09695599]
[1757327821610,0.32909311,112200.0,112190.0,0.27522499]
[1757327821829,0.002,112200.0,112190.0,0.61407999]
[1757327822252,0.002,112200.0,112190.0,0.76287999]
[1757327822685,0.002,112200.0,112190.0,0.45368522]
[1757327823941,0.002,112200.0,112190.0,0.76287999]
[1757327824556,0.002,112200.0,112190.0,0.45368522]
[1757327825230,0.18025311,112200.0,112190.0,0.45368522]
[1757327825716,0.002,112200.0,112190.0,0.45368522]
[1757327826335,0.18025311,112200.0,112190.0,0.45368522]
[1757327826553,0.18025311,112200.0,112190.0,0.30488522]
[1757327826781,0.18025311,112200.0,112190.0,0.45364522]
[1757327827197,0.18025311,112200.0,112190.0,0.30488522]
[1757327827452,0.18025311,112200.0,112190.0,0.76283999]
[1757327828745,0.002,112200.0,112190.0,0.76283999]
[1757327829029,0.18025311,112200.0,112190.0,0.76283999]
[1757327829279,0.002,112200.0,112190.0,0.76283999]
[1757327830671,0.002,112200.0,112190.0,0.45364522]
[1757327830925,0.002,112200.0,112190.0,0.78960994]
[1757327831131,0.002,112200.0,112190.0,1.18960994]
[1757327831344,0.001,112200.0,112190.0,1.18960994]
[1757327831788,0.33590686,112220.0,112210.0,0.02093882]
[1757327832009,0.18714686,112220.0,112210.0,0.29613204]
[1757327833347,0.52714686,112220.0,112210.0,0.29613204]
[1757327833781,0.52814686,112220.0,112210.0,0.29613204]
[1757327834657,0.52914686,112220.0,112210.0,0.29613204]
[1757327834811,0.002,112220.0,112210.0,0.29613204]
[1757327835023,0.002,112220.0,112210.0,0.44489204]
[1757327836309,0.002,112220.0,112210.0,0.47165982]
[1757327837160,0.18022135,112220.0,112210.0,0.47165982]
[1757327837928,0.18022135,112220.0,112210.0,0.32289982]
[1757327840996,0.002,112220.0,112210.0,0.63209459]
[1757327841936,0.001,112220.0,112210.0,0.63209459]
[1757327842157,0.18097849,112240.0,112230.0,0.17820547]
[1757327842350,0.18111738,112240.0,112230.0,0.27221146]
[1757327842558,0.18111738,112240.0,112230.0,0.27518146]
[1757327842763,0.18323738,112240.0,112230.0,0.09400599]
[1757327842983,0.18344317,112240.0,112230.0,0.09400599]
[1757327844079,0.18045317,112240.0,112230.0,0.09400599]
[1757327844317,0.48964794,112240.0,112230.0,0.09400599]
[1757327844519,0.48964794,112240.0,112230.0,0.27221146]
[1757327844697,0.48964794,112240.0,112230.0,0.09400599]
[1757327845099,0.49263794,112240.0,112230.0,0.09400599]
[1757327845311,0.49363794,112240.0,112230.0,0.09400599]
[1757327845530,0.49463794,112240.0,112230.0,0.09400599]
[1757327845961,0.00213889,112240.0,112230.0,0.60531505]
[1757327846385,0.00213889,112240.0,112230.0,0.32287972]
[1757327846834,0.00113889,112240.0,112230.0,0.32287972]
[1757327847310,0.00213889,112240.0,112230.0,0.32287972]
[1757327847898,0.00113889,112240.0,112230.0,0.32287972]
[1757327848132,0.00113889,112240.0,112230.0,0.51328112]
[1757327848501,0.00113889,112240.0,112230.0,0.51228112]
[1757327848705,0.00013889,112240.0,112230.0,0.36360112]
[1757327848909,0.00013889,112240.0,112230.0,0.51428112]
[1757327853349,0.00013889,112240.0,112230.0,0.4933423]
[1757327856398,0.00013889,112240.0,112230.0,0.8333423]
[1757327856605,0.00013889,112240.0,112230.0,1.0965423]
[1757327858731,0.00013889,112240.0,112230.0,1.08535846]
[1757327859094,0.00013889,112240.0,112230.0,1.06969952]
[1757327859718,0.00013889,112240.0,112230.0,1.06410685]
[1757327862430,0.00013889,112240.0,112230.0,0.91542685]
[1757327862676,0.00013889,112240.0,112230.0,1.06406685]
[1757327864102,0.00013889,112240.0,112230.0,1.10981335]
[1757327866566,0.20950626,112250.0,112240.0,0.47991925]
[1757327866771,0.20950626,112250.0,112240.0,0.72340524]
[1757327866976,0.20950626,112250.0,112240.0,0.72549524]
[1757327867365,0.20950626,112250.0,112240.0,0.75225165]
[1757327867878,0.20950626,112250.0,112240.0,0.44330515]
[1757327869742,0.20950626,112250.0,112240.0,0.44430515]
[1757327870082,0.20950626,112250.0,112240.0,0.44530515]
[1757327871417,0.20950626,112250.0,112240.0,0.29670515]
[1757327871644,0.20950626,112250.0,112240.0,0.44530515]
[1757327872450,0.20950626,112250.0,112240.0,0.75417083]
[1757327872670,0.20950626,112250.0,112240.0,0.44530515]
[1757327872923,0.20950626,112250.0,112240.0,0.29670515]
[1757327873141,0.51837194,112250.0,112240.0,0.79252199]
[1757327874037,0.51837194,112250.0,112240.0,0.79052199]
[1757327874269,0.51837194,112250.0,112240.0,0.79152199]
[1757327878032,0.52357194,112250.0,112240.0,0.78646199]
[1757327878294,0.51837194,112250.0,112240.0,0.79167199]
[1757327879273,0.69654565,112250.0,112240.0,0.79167199]
[1757327879914,0.69863565,112250.0,112240.0,0.78854199]
[1757327880116,0.70174565,112250.0,112240.0,0.78854199]
[1757327880314,0.52046194,112250.0,112240.0,0.78854199]
[1757327880585,0.69863565,112250.0,112240.0,0.78854199]
[1757327880921,0.70174565,112250.0,112240.0,0.78646199]
[1757327881123,0.52357194,112250.0,112240.0,0.78646199]
[1757327881337,0.52357194,112250.0,112240.0,0.78854199]
[1757327881557,0.52046194,112250.0,112240.0,0.78854199]
[1757327881758,0.69863565,112250.0,112240.0,0.78854199]
[1757327882179,0.20950626,112250.0,112240.0,0.79167199]
[1757327882586,0.51837194,112250.0,112240.0,0.79167199]
[1757327882892,0.20950626,112250.0,112240.0,0.79167199]
[1757327883096,0.51837194,112250.0,112240.0,0.79167199]
[1757327883251,0.51837194,112250.0,112240.0,1.05487199]
[1757327885554,0.70174565,112250.0,112240.0,1.04966199]
[1757327885756,0.70174565,112250.0,112240.0,0.8714324]
[1757327885977,0.70174565,112250.0,112240.0,1.04962199]
[1757327888882,0.70174565,112250.0,112240.0,1.06746199]
[1757327889123,0.70174565,112250.0,112240.0,1.04962199]
[1757327889519,0.52357194,112250.0,112240.0,1.04962199]
[1757327889909,0.70174565,112250.0,112240.0,1.04962199]
[1757327891366,0.70174565,112250.0,112240.0,1.05170199]
[1757327894278,0.70174565,112250.0,112240.0,1.04962199]
[1757327894476,0.70174565,112250.0,112240.0,0.7228724]
[1757327894682,0.70174565,112250.0,112240.0,1.04962199]
[1757327895134,0.70174565,112250.0,112240.0,0.78642199]
[1757327895328,0.70174565,112250.0,112240.0,0.44642199]
[1757327897643,0.70174565,112250.0,112240.0,0.29994199]
[1757327897864,0.70174565,112250.0,112240.0,0.44850199]
[1757327898072,0.70174565,112250.0,112240.0,0.44642199]
[1757327900767,0.70174565,112250.0,112240.0,0.2682324]
[1757327901999,0.70174565,112250.0,112240.0,0.44642199]
[1757327904203,0.39287997,112250.0,112240.0,0.44853199]
[1757327904409,0.69654565,112250.0,112240.0,0.45169199]
[1757327905012,0.69869565,112250.0,112240.0,0.44853199]
[1757327905223,0.51837194,112250.0,112240.0,0.45169199]
[1757327905451,0.20950626,112250.0,112240.0,0.45169199]
[1757327905658,0.51837194,112250.0,112240.0,0.45169199]
[1757327910588,0.69654565,112250.0,112240.0,0.45169199]
[1757327910812,0.20950626,112250.0,112240.0,0.45169199]
[1757327911012,0.51837194,112250.0,112240.0,0.45169199]
[1757327911587,0.20950626,112250.0,112240.0,0.45169199]
[1757327911814,0.51837194,112250.0,112240.0,0.45169199]
[1757327913861,0.69869565,112250.0,112240.0,0.45169199]
[1757327915507,0.38982997,112250.0,112240.0,0.45169199]
[1757327915713,0.69869565,112250.0,112240.0,0.45169199]
[1757327917533,0.69869565,112250.0,112240.0,0.44853199]
[1757327920524,0.69654565,112250.0,112240.0,0.45169199]
[1757327920961,0.38982997,112250.0,112240.0,0.45169199]
[1757327921182,0.69869565,112250.0,112240.0,0.45169199]
[1757327921390,0.38982997,112250.0,112240.0,0.45169199]
[1757327921605,0.69869565,112250.0,112240.0,0.45169199]
[1757327923481,0.38982997,112250.0,112240.0,0.45169199]
[1757327923660,0.69869565,112250.0,112240.0,0.45169199]
[1757327926418,0.69869565,112250.0,112240.0,0.44853199]
[1757327928444,0.38982997,112250.0,112240.0,0.44853199]
[1757327928664,0.69869565,112250.0,112240.0,0.44853199]
[1757327930615,0.38982997,112250.0,112240.0,0.44853199]
[1757327931084,0.69869565,112250.0,112240.0,0.44853199]
[1757327932188,0.69869565,112250.0,112240.0,0.40509718]
[1757327932399,0.69869565,112250.0,112240.0,0.31104261]
[1757327932610,0.69869565,112250.0,112240.0,0.33780442]
[1757327934473,0.38982997,112250.0,112240.0,0.33780442]
[1757327935095,0.38767997,112250.0,112240.0,0.33780442]
[1757327935293,0.38964997,112250.0,112240.0,0.33780442]
[1757327936903,0.38964997,112250.0,112240.0,0.32951579]
[1757327937108,0.38964997,112250.0,112240.0,0.17743181]
[1757327937315,0.38964997,112250.0,112240.0,0.3556214]
[1757327937526,0.38964997,112250.0,112240.0,0.17743181]
[1757327937737,0.39277997,112250.0,112240.0,0.3556214]
[1757327937942,0.39277997,112250.0,112240.0,0.17743181]
[1757327938569,0.39277997,112250.0,112240.0,0.3556214]
[1757327940286,0.38964997,112250.0,112240.0,0.3556214]
[1757327943964,0.39277997,112250.0,112240.0,0.3556214]
[1757327946132,0.20950626,112250.0,112240.0,0.75955911]
[1757327946575,0.20950626,112250.0,112240.0,0.45063739]
[1757327947207,0.20950626,112250.0,112240.0,1.09955911]
[1757327948411,0.20950626,112250.0,112240.0,0.79063739]
[1757327948650,0.20950626,112250.0,112240.0,1.05383739]
[1757327955120,0.20950626,112250.0,112240.0,0.90527739]
[1757327955337,0.20950626,112250.0,112240.0,1.05371739]
[1757327958742,0.20950626,112250.0,112240.0,0.90527739]
[1757327958954,0.20950626,112250.0,112240.0,1.05371739]
[1757327959148,0.20950626,112250.0,112240.0,0.90527739]
[1757327959351,0.20950626,112250.0,112240.0,1.05371739]
[1757327960422,0.20950626,112250.0,112240.0,1.04183732]
[1757327960656,0.20950626,112250.0,112240.0,1.04393732]
[1757327961147,0.39282997,112250.0,112240.0,1.04083732]
[1757327961366,0.38973997,112250.0,112240.0,1.04083732]
[1757327961579,0.38767997,112250.0,112240.0,1.04083732]
[1757327961781,0.38767997,112250.0,112240.0,1.04400732]
[1757327963763,0.38767997,112250.0,112240.0,1.0288846]
[1757327964202,0.38767997,112250.0,112240.0,1.0320546]
[1757327965623,0.38767997,112250.0,112240.0,0.8804446]
[1757327965824,0.38767997,112250.0,112240.0,1.0288846]
[1757327966467,0.38767997,112250.0,112240.0,0.7656846]
[1757327966677,0.38767997,112250.0,112240.0,0.6172446]
[1757327966891,0.70175169,112250.0,112240.0,0.58539501]
[1757327967135,0.70175169,112250.0,112240.0,0.43695501]
[1757327967381,0.70175169,112250.0,112240.0,0.58539501]
[1757327967627,0.70175169,112250.0,112240.0,0.7635846]
[1757327968164,0.39282997,112250.0,112240.0,0.58539501]
[1757327968376,0.70175169,112250.0,112240.0,0.58539501]
[1757327968839,0.70175169,112250.0,112240.0,0.34503902]
[1757327969071,0.70175169,112250.0,112240.0,0.49347902]
[1757327969475,0.70175169,112250.0,112240.0,0.15347902]
[1757327973145,0.70175169,112250.0,112240.0,0.00503902]
[1757327973304,0.70175169,112250.0,112240.0,0.15343902]
[1757327975322,0.39282997,112250.0,112240.0,0.15343902]
[1757327975536,0.70175169,112250.0,112240.0,0.15343902]
[1757327977923,0.70175169,112250.0,112240.0,0.00503902]
[1757327978129,0.70175169,112250.0,112240.0,0.15343902]
[1757327978894,0.70175169,112250.0,112240.0,0.00503902]
[1757327979103,0.70175169,112250.0,112240.0,0.15343902]
[1757327980272,0.70175169,112250.0,112240.0,0.00503902]
[1757327980516,0.70175169,112250.0,112240.0,0.15343902]
[1757327982639,0.70175169,112250.0,112240.0,0.00503902]
[1757327982868,0.17818959,112240.0,112230.0,0.4492014]
[1757327983110,0.48989552,112240.0,112230.0,0.5976014]
[1757327983321,0.49226131,112240.0,112230.0,0.13596573]
[1757327983537,0.49226131,112240.0,112230.0,0.28436573]
[1757327984026,0.49226131,112240.0,112230.0,0.17516433]
[1757327984272,0.49226131,112240.0,112230.0,0.1484]
[1757327984697,0.49226131,112240.0,112230.0,0.1504]
[1757327985123,0.49226131,112240.0,112230.0,0.1484]
[1757327985339,0.17820547,112230.0,112220.0,0.20498616]
[1757327985528,0.49300165,112230.0,112220.0,0.02676556]
[1757327985798,0.49227719,112230.0,112220.0,0.1484]
[1757327987468,0.51904527,112230.0,112220.0,0.1484]
[1757327987985,0.51904527,112230.0,112220.0,0.1494]
[1757327989831,0.66744527,112230.0,112220.0,0.1494]
[1757327991062,0.66744527,112230.0,112220.0,0.001]
[1757327991670,1.08856251,112230.0,112220.0,0.001]
[1757327992090,1.1804785,112230.0,112220.0,0.001]
[1757327992700,0.17825311,112200.0,112190.0,0.03567262]
[1757327992915,0.17825311,112200.0,112190.0,0.52263262]
[1757327992916,0.18103831,112200.0,112190.0,0.52263262]
[1757327993131,0.18625831,112200.0,112190.0,0.52263262]
[1757327993337,0.18347311,112200.0,112190.0,0.52263262]
[1757327993973,0.18347311,112200.0,112190.0,0.52277151]
[1757327994593,0.49266489,112200.0,112190.0,0.52491151]
[1757327994810,0.18347311,112200.0,112190.0,0.52277151]
[1757327995020,0.18347311,112200.0,112190.0,0.52691151]
[1757327995226,0.49266489,112200.0,112190.0,0.52691151]
[1757327995430,0.18347311,112200.0,112190.0,0.52477151]
[1757327995843,0.18347311,112200.0,112190.0,0.52577151]
[1757327996047,0.49266489,112200.0,112190.0,0.52577151]
[1757327996459,0.18347311,112200.0,112190.0,0.52577151]
[1757327996754,0.49266489,112200.0,112190.0,0.52577151]
[1757327997546,0.18347311,112200.0,112190.0,0.52791151]
[1757327997756,0.49266489,112200.0,112190.0,0.52791151]
[1757327998199,0.91806266,112200.0,112190.0,0.02991142]
[1757327998382,0.91806266,112200.0,112190.0,0.00313889]
[1757327998619,0.94484169,112200.0,112190.0,0.00313889]
[1757327999087,0.94484169,112200.0,112190.0,0.00213889]
[1757327999430,1.09760169,112200.0,112190.0,0.00213889]
[1757327999903,1.09660169,112200.0,112190.0,0.00013889]
[1757328000162,0.78840991,112200.0,112190.0,0.00013889]
[1757328000452,1.09760169,112200.0,112190.0,0.00013889]
[1757328000706,0.95584169,112200.0,112190.0,0.00013889]
[1757328000955,1.10756169,112200.0,112190.0,0.00013889]
[1757328001201,0.95584169,112200.0,112190.0,0.00013889]
[1757328001441,1.10760169,112200.0,112190.0,0.00013889]
[1757328002173,1.10760169,112200.0,112190.0,0.00113889]
[1757328002419,1.10760169,112200.0,112190.0,0.00013889]
[1757328002663,1.10960169,112200.0,112190.0,0.00013889]
[1757328002922,0.95784169,112200.0,112190.0,0.00013889]
[1757328003119,1.10960169,112200.0,112190.0,1.861e-05]
[1757328004225,1.10952169,112200.0,112190.0,1.861e-05]
[1757328010560,1.10940169,112200.0,112190.0,1.861e-05]
[1757328011897,0.49101813,112200.0,112190.0,1.861e-05]
[1757328012067,1.10940169,112200.0,112190.0,1.861e-05]
[1757328013043,0.9931157,112200.0,112190.0,1.861e-05]
[1757328013235,0.53244392,112200.0,112190.0,0.00215861]
[1757328013445,0.50566489,112200.0,112190.0,0.00215861]
[1757328013649,0.65710489,112200.0,112190.0,0.00215861]
[1757328013863,0.96629667,112200.0,112190.0,0.00215861]
[1757328014526,0.96629667,112200.0,112190.0,1.861e-05]
[1757328014971,0.34791311,112200.0,112190.0,1.861e-05]
[1757328015180,0.96629667,112200.0,112190.0,1.861e-05]
[1757328015592,0.96629667,112200.0,112190.0,0.00215861]
[1757328015794,1.30629667,112200.0,112190.0,1.861e-05]
[1757328016012,1.61548845,112200.0,112190.0,1.861e-05]
[1757328016236,1.73169444,112200.0,112190.0,1.861e-05]
[1757328016649,1.42250266,112200.0,112190.0,1.861e-05]
[1757328016890,1.75847249,112200.0,112190.0,1.861e-05]
[1757328017742,1.44928071,112200.0,112190.0,1.861e-05]
[1757328017942,1.35736472,112200.0,112190.0,1.861e-05]
[1757328018366,1.6665565,112200.0,112190.0,1.861e-05]
[1757328018812,0.71469116,112200.0,112190.0,1.861e-05]
[1757328019048,1.33307472,112200.0,112190.0,1.861e-05]
[1757328019270,1.35228312,112200.0,112190.0,1.861e-05]
[1757328020406,0.73389956,112200.0,112190.0,1.861e-05]
[1757328020692,1.35228312,112200.0,112190.0,1.861e-05]
[1757328022581,1.20084312,112200.0,112190.0,1.861e-05]
[1757328022785,1.32550507,112200.0,112190.0,1.861e-05]
[1757328024599,0.70712151,112200.0,112190.0,1.861e-05]
[1757328024820,1.32550507,112200.0,112190.0,1.861e-05]
[1757328027584,0.70712151,112200.0,112190.0,1.861e-05]
[1757328027803,1.32550507,112200.0,112190.0,1.861e-05]
[1757328028037,0.70712151,112200.0,112190.0,1.861e-05]
[1757328028257,1.32550507,112200.0,112190.0,1.861e-05]
[1757328028950,0.70712151,112200.0,112190.0,1.861e-05]
[1757328029205,1.3730078,112200.0,112190.0,1.861e-05]
[1757328029428,1.32550507,112200.0,112190.0,1.861e-05]
[1757328032021,0.70712151,112200.0,112190.0,1.861e-05]
[1757328032352,1.32550507,112200.0,112190.0,1.861e-05]
[1757328034486,0.36712151,112200.0,112190.0,1.861e-05]
[1757328034714,0.96629667,112200.0,112190.0,1.861e-05]
[1757328034938,0.98550507,112200.0,112190.0,1.861e-05]
[1757328037565,1.32550507,112200.0,112190.0,1.861e-05]
[1757328037796,1.32555626,112200.0,112190.0,1.861e-05]
[1757328039373,1.30629667,112200.0,112190.0,1.861e-05]
[1757328041797,1.30581667,112200.0,112190.0,1.861e-05]
[1757328045723,0.96581667,112200.0,112190.0,1.861e-05]
[1757328046909,1.30581667,112200.0,112190.0,1.861e-05]
[1757328047988,0.96581667,112200.0,112190.0,1.861e-05]
[1757328048760,1.30581667,112200.0,112190.0,1.861e-05]
[1757328050590,0.81485667,112200.0,112190.0,1.861e-05]
[1757328050806,0.96557667,112200.0,112190.0,1.861e-05]
[1757328051074,1.30557667,112200.0,112190.0,1.861e-05]
[1757328051290,1.61476845,112200.0,112190.0,1.861e-05]
[1757328051510,1.30557667,112200.0,112190.0,1.861e-05]
[1757328054319,0.98651549,112200.0,112190.0,1.861e-05]
[1757328054535,0.98678143,112200.0,112190.0,1.861e-05]
[1757328055415,1.01355931,112200.0,112190.0,1.861e-05]
[1757328056465,1.01339931,112200.0,112190.0,1.861e-05]
[1757328056706,0.86283931,112200.0,112190.0,1.861e-05]
[1757328056927,1.01339931,112200.0,112190.0,1.861e-05]
[1757328057346,1.01340087,112200.0,112190.0,1.861e-05]
[1757328059851,0.96568417,112200.0,112190.0,1.861e-05]
[1757328061345,0.96560417,112200.0,112190.0,0.00201861]
[1757328061565,0.81512417,112200.0,112190.0,0.00201861]
[1757328061716,0.96556417,112200.0,112190.0,0.00201861]
[1757328062320,0.96556417,112200.0,112190.0,1.861e-05]
[1757328063813,0.96556417,112200.0,112190.0,0.00201861]
[1757328066446,0.96556417,112200.0,112190.0,1.861e-05]
[1757328068321,0.96556417,112200.0,112190.0,0.00201861]
[1757328068923,0.96239417,112200.0,112190.0,0.00201861]
[1757328069235,0.96533417,112200.0,112190.0,0.00201861]
[1757328069656,0.013,112200.0,112190.0,0.2722036]
[1757328069910,0.013,112200.0,112190.0,0.7655036]
[1757328070119,0.013,112200.0,112190.0,0.792274]
[1757328070326,0.013,112200.0,112190.0,1.192274]
[1757328070769,0.011,112200.0,112190.0,1.192274]
[1757328071010,0.01,112200.0,112190.0,1.192274]
[1757328071149,0.011,112200.0,112190.0,1.192274]
[1757328071562,0.01,112200.0,112190.0,1.192274]
[1757328071963,0.01,112200.0,112190.0,1.195274]
[1757328073349,0.01,112200.0,112190.0,1.197274]
[1757328077967,0.01,112200.0,112190.0,1.21821282]
[1757328080936,0.01,112200.0,112190.0,1.22671961]
[1757328087864,0.01,112200.0,112190.0,1.22171961]
[1757328088243,0.01,112200.0,112190.0,1.48691961]
[1757328088894,0.01,112200.0,112190.0,1.51109961]
[1757328089446,0.01,112200.0,112190.0,1.51209961]
[1757328089857,0.01,112200.0,112190.0,1.51109961]
[1757328090284,0.01,112200.0,112190.0,1.51209961]
[1757328090901,0.01,112200.0,112190.0,1.48867961]
[1757328091317,0.01,112200.0,112190.0,1.31702079]
[1757328091318,0.31932553,112200.0,112190.0,1.31702079]
[1757328091492,0.31932553,112200.0,112190.0,1.46786079]
[1757328091693,0.31932553,112200.0,112190.0,1.31702079]
[1757328091907,0.01,112200.0,112190.0,1.46786079]
[1757328092457,0.01,112200.0,112190.0,1.46686079]
[1757328093015,0.01,112200.0,112190.0,1.46886079]
[1757328098077,0.01,112200.0,112190.0,1.31802079]
[1757328098338,0.01,112200.0,112190.0,1.46902079]
[1757328107951,0.00525512,112200.0,112190.0,1.48995961]
[1757328108163,0.00525512,112200.0,112190.0,1.56975241]
[1757328108427,0.00525512,112200.0,112190.0,1.48995961]
[1757328108838,0.00525512,112200.0,112190.0,1.56975241]
[1757328109042,0.00525512,112200.0,112190.0,1.41675241]
[1757328109252,0.00525512,112200.0,112190.0,1.56543241]
[1757328109456,0.00525512,112200.0,112190.0,1.48563961]
[1757328109676,0.00525512,112200.0,112190.0,1.48763961]
[1757328110097,0.00525512,112200.0,112190.0,1.48563961]
[1757328110510,0.00525512,112200.0,112190.0,1.48763961]
[1757328110712,0.00525512,112200.0,112190.0,1.48663961]
[1757328111116,0.00525512,112200.0,112190.0,1.48863961]
[1757328117651,0.00525512,112200.0,112190.0,1.55711961]
[1757328118555,0.00525512,112200.0,112190.0,1.63691241]
[1757328121319,0.00525512,112200.0,112190.0,1.63667241]
[1757328122338,0.00525512,112200.0,112190.0,1.48623241]
[1757328122549,0.00525512,112200.0,112190.0,1.63667241]
[1757328124136,0.00525512,112200.0,112190.0,1.65451241]
[1757328124333,0.00525512,112200.0,112190.0,1.63667241]
[1757328125723,0.00525512,112200.0,112190.0,1.48623241]
[1757328125930,0.00525512,112200.0,112190.0,1.63659241]
[1757328127639,0.00525512,112200.0,112190.0,1.48623241]
[1757328127865,0.00525512,112200.0,112190.0,1.63655241]
[1757328135696,0.31436107,112200.0,112190.0,1.63655241]
[1757328135900,0.31436107,112200.0,112190.0,1.63523211]
[1757328139989,0.31436107,112200.0,112190.0,1.63495211]
[1757328145333,0.31436107,112200.0,112190.0,1.63487211]
[1757328151019,0.00525512,112200.0,112190.0,1.63487211]
[1757328151240,0.31436107,112200.0,112190.0,1.63487211]
[1757328151714,0.00525512,112200.0,112190.0,1.63487211]
[1757328151902,0.31436107,112200.0,112190.0,1.63487211]
[1757328154819,0.00525512,112200.0,112190.0,1.61393329]
[1757328155006,0.31436107,112200.0,112190.0,1.61393329]
[1757328155879,0.00525512,112200.0,112190.0,1.61393329]
[1757328156085,0.31436107,112200.0,112190.0,1.61393329]
[1757328158805,0.00525512,112200.0,112190.0,1.61393329]
[1757328158993,0.31436107,112200.0,112190.0,1.61393329]
[1757328159976,0.00525512,112200.0,112190.0,1.61393329]
[1757328160179,0.31436107,112200.0,112190.0,1.61393329]
[1757328163459,0.31436107,112200.0,112190.0,1.61357329]
[1757328166467,0.31436107,112200.0,112190.0,1.61051329]
[1757328166956,0.31436107,112200.0,112190.0,1.61275329]
[1757328167351,0.00525512,112200.0,112190.0,1.61275329]
[1757328167558,0.31436107,112200.0,112190.0,1.61275329]
[1757328168065,0.62346702,112200.0,112190.0,1.61275329]
[1757328168274,0.62346702,112200.0,112190.0,1.46091329]
[1757328168505,0.62668702,112200.0,112190.0,1.61043329]
[1757328169561,0.62346702,112200.0,112190.0,1.61043329]
[1757328170364,0.00525512,112200.0,112190.0,1.61043329]
[1757328170572,0.62346702,112200.0,112190.0,1.61043329]
[1757328176537,0.31443606,112200.0,112190.0,1.61043329]
[1757328176883,0.31443606,112200.0,112190.0,1.58643329]
[1757328177066,0.31443606,112200.0,112190.0,1.58859329]
[1757328180687,0.31443606,112200.0,112190.0,1.59013329]
[1757328180903,0.31443606,112200.0,112190.0,1.58859329]
[1757328181304,0.00525512,112200.0,112190.0,1.58859329]
[1757328181505,0.31443606,112200.0,112190.0,1.58859329]
[1757328181705,0.31750606,112200.0,112190.0,1.58859329]
[1757328184576,0.31443606,112200.0,112190.0,1.58859329]
[1757328187209,1.17210166,112200.0,112190.0,0.1095632]
[1757328187426,0.17830542,112170.0,112150.0,0.41911903]
[1757328187665,0.17830542,112170.0,112160.0,0.09191599]
[1757328187666,0.4902723,112170.0,112160.0,0.09191599]
[1757328187875,0.4902723,112170.0,112160.0,0.24127599]
[1757328187876,0.48748636,112170.0,112160.0,0.24127599]
[1757328188087,0.49270636,112170.0,112160.0,0.24127599]
[1757328188293,0.49270636,112170.0,112160.0,0.26805412]
[1757328188532,0.49270636,112170.0,112160.0,0.17613813]
[1757328188747,0.8018873,112170.0,112160.0,0.18492015]
[1757328188964,0.8018873,112170.0,112160.0,0.03556015]
[1757328189189,0.62558188,112170.0,112160.0,0.27683614]
[1757328189458,0.002,112170.0,112160.0,0.79885283]
[1757328190112,0.003,112170.0,112160.0,0.79885283]
[1757328190324,0.31218094,112170.0,112160.0,0.79885283]
[1757328190534,0.31118094,112170.0,112160.0,0.79885283]
[1757328190768,0.002,112170.0,112160.0,0.79885283]
[1757328191197,0.002,112170.0,112160.0,0.81979165]
[1757328191410,0.30918094,112190.0,112180.0,0.17828489]
[1757328191594,0.30918094,112190.0,112180.0,0.49024088]
[1757328191788,0.31225094,112190.0,112180.0,0.49024088]
[1757328192001,0.31440094,112190.0,112180.0,0.89024088]
[1757328192216,0.31440094,112190.0,112180.0,0.9170136]
[1757328193244,0.31640094,112190.0,112180.0,0.9170136]
[1757328194913,0.31640094,112190.0,112180.0,1.1802136]
[1757328197006,0.31118094,112190.0,112180.0,1.22017532]
[1757328197675,0.002,112190.0,112180.0,1.22017532]
[1757328197878,0.31118094,112190.0,112180.0,1.22017532]
[1757328199980,0.002,112190.0,112180.0,1.22017532]
[1757328200168,0.31118094,112190.0,112180.0,1.22017532]
[1757328200923,0.31118094,112190.0,112180.0,1.07077532]
[1757328201141,0.31118094,112190.0,112180.0,1.22017532]
[1757328201770,0.31118094,112190.0,112180.0,0.80757532]
[1757328202002,0.31118094,112190.0,112180.0,0.95697532]
[1757328202656,0.002,112190.0,112180.0,1.29697532]
[1757328202878,0.31118094,112190.0,112180.0,1.29697532]
[1757328205892,0.002,112190.0,112180.0,1.29697532]
[1757328206106,0.002,112190.0,112180.0,1.14757532]
[1757328206107,0.31118094,112190.0,112180.0,1.14757532]
[1757328206317,0.31317094,112190.0,112180.0,1.29697532]
[1757328206600,0.31635094,112190.0,112180.0,1.29697532]
[1757328206808,0.31635094,112190.0,112180.0,1.56017532]
[1757328209816,0.31436094,112190.0,112180.0,1.56017532]
[1757328210239,0.31635094,112190.0,112180.0,1.56017532]
[1757328210952,0.00717,112190.0,112180.0,1.56017532]
[1757328211160,0.31635094,112190.0,112180.0,1.55997532]
[1757328211361,0.31635094,112190.0,112180.0,1.41057532]
[1757328211563,0.31635094,112190.0,112180.0,1.55993532]
[1757328211765,0.00717,112190.0,112180.0,1.55993532]
[1757328211971,0.31635094,112190.0,112180.0,1.55993532]
[1757328213668,0.00717,112190.0,112180.0,1.55993532]
[1757328213875,0.31635094,112190.0,112180.0,1.55993532]
[1757328215865,0.00717,112190.0,112180.0,1.55993532]
[1757328216101,0.31635094,112190.0,112180.0,1.55993532]
[1757328220432,0.31118094,112190.0,112180.0,1.55993532]
[1757328220647,0.31118094,112190.0,112180.0,1.56147532]
[1757328220866,0.002,112190.0,112180.0,1.56147532]
[1757328221084,0.31118094,112190.0,112180.0,1.55993532]
[1757328221284,0.002,112190.0,112180.0,1.55993532]
[1757328221495,0.31118094,112190.0,112180.0,1.55993532]
[1757328221922,0.002,112190.0,112180.0,1.55993532]
[1757328222142,0.31118094,112190.0,112180.0,1.55993532]
[1757328222377,0.002,112190.0,112180.0,1.55993532]
[1757328222581,0.31118094,112190.0,112180.0,1.55993532]
[1757328222792,0.002,112190.0,112180.0,1.56147532]
[1757328224308,0.31118094,112190.0,112180.0,1.56147532]
[1757328224513,0.002,112190.0,112180.0,1.56147532]
[1757328224751,0.31118094,112190.0,112180.0,1.56147532]
[1757328224962,0.30918094,112190.0,112180.0,1.56147532]
[1757328225345,0.30918094,112190.0,112180.0,1.56247532]
[1757328226320,0.30918094,112190.0,112180.0,1.56093532]
[1757328226846,0.00843512,112200.0,112190.0,0.178269]
[1757328227051,0.31761606,112200.0,112190.0,0.41954499]
[1757328227252,0.31960606,112200.0,112190.0,0.41954499]
[1757328227528,0.31960606,112200.0,112190.0,0.84631446]
[1757328228068,0.01042512,112200.0,112190.0,0.84873769]
[1757328228231,0.31960606,112200.0,112190.0,0.69741769]
[1757328228439,0.31960606,112200.0,112190.0,0.84677769]
[1757328228673,0.32060606,112200.0,112190.0,0.84677769]
[1757328228866,0.629787,112200.0,112190.0,0.84677769]
[1757328229488,0.31543606,112200.0,112190.0,0.84873769]
[1757328230194,0.31861606,112200.0,112190.0,0.84873769]
[1757328230634,0.32068606,112200.0,112190.0,1.11193769]
[1757328232880,0.32068606,112200.0,112190.0,0.96061769]
[1757328233100,0.629867,112200.0,112190.0,1.10997769]
[1757328234320,0.01150512,112200.0,112190.0,1.10997769]
[1757328234568,0.629867,112200.0,112190.0,1.10997769]
[1757328235563,0.32068606,112200.0,112190.0,1.11204769]
[1757328235793,0.32068606,112200.0,112190.0,1.1761746]
[1757328236021,0.32068606,112200.0,112190.0,1.1741046]
[1757328236588,0.6299517,112200.0,112190.0,1.1741046]
[1757328237092,0.6299517,112200.0,112190.0,1.1919546]